bitfinex/quotes_ETHUSD_20240715
["timestamp","ask_amount","ask_price","bid_price","bid_amount"]
[1721020411006,8.58356794,3345.0,3344.4,2.69105]
[1721020411176,1.36197935,3344.9,3344.4,2.69105]
[1721020411376,0.32660664,3344.8,3344.5,0.05742214]
[1721020411612,2.69051,3345.1,3344.5,0.05742214]
[1721020411811,1.2537951,3344.9,3344.5,0.05742214]
[1721020412025,3.24076,3344.8,3343.6,3.0]
[1721020412192,4.05311934,3344.7,3344.6,0.05739834]
[1721020412511,2.61603444,3344.7,3344.1,2.6913]
[1721020412709,0.32673296,3344.6,3344.1,2.6913]
[1721020412909,1.2537951,3344.7,3344.1,2.6913]
[1721020413107,1.36225875,3344.6,3344.2,0.05745913]
[1721020413308,1.83189096,3344.7,3344.2,0.05745913]
[1721020413522,0.32672789,3344.6,3344.2,0.05745913]
[1721020413691,1.2537951,3344.9,3344.3,2.69113]
[1721020413894,1.36211118,3344.8,3344.3,2.69113]
[1721020414114,0.32667069,3344.7,3344.4,0.05741153]
[1721020414410,1.2537951,3344.8,3344.1,2.6913]
[1721020414615,1.36212157,3344.7,3344.1,2.6913]
[1721020414812,0.32669073,3344.6,3344.2,0.05745913]
[1721020415017,1.2537951,3344.8,3344.2,0.05745913]
[1721020415236,2.18245227,3344.7,3344.2,0.05745913]
[1721020415546,4.05313613,3344.6,3344.2,0.05745913]
[1721020415841,0.32671458,3344.5,3343.6,3.0]
[1721020416032,0.32671458,3344.5,3344.3,0.05743533]
[1721020416218,0.32671458,3344.5,3343.8,2.69154]
[1721020416538,0.32671458,3344.4,3343.8,2.69154]
[1721020416715,1.2537951,3344.6,3343.9,0.05753053]
[1721020416916,0.32676544,3344.5,3343.9,0.05753053]
[1721020417115,1.0355068,3344.6,3343.8,2.69154]
[1721020417316,1.36229559,3344.5,3343.8,2.69154]
[1721020417644,2.6909,3344.6,3343.8,2.69154]
[1721020417808,1.36227843,3344.5,3343.8,2.69154]
[1721020418008,0.3267521,3344.4,3343.8,2.69154]
[1721020418210,0.32679148,3344.3,3343.8,2.69154]
[1721020418405,3.9446951,3344.6,3343.8,2.69154]
[1721020418611,1.36237955,3344.5,3343.8,2.69154]
[1721020418883,0.32680108,3344.4,3343.8,2.69154]
[1721020419011,0.32680108,3344.4,3343.9,0.05753053]
[1721020419210,3.01788108,3344.4,3343.9,0.05753053]
[1721020419444,2.69108,3344.4,3343.9,0.05753053]
[1721020419643,2.69108,3344.4,3343.5,0.1163867]
[1721020419644,6.0328715,3344.3,3343.5,0.1163867]
[1721020419812,1.36241011,3344.2,3343.5,2.8081667]
[1721020420150,4.05383402,3344.1,3343.6,0.05764945]
[1721020420350,1.36247402,3344.0,3343.6,0.05764945]
[1721020420512,0.32680637,3343.9,3343.6,0.05764945]
[1721020420853,0.58394039,3343.9,3343.6,0.05764945]
[1721020421050,3.9451551,3344.1,3343.6,0.05764945]
[1721020421510,1.36262983,3344.0,3343.6,0.05764945]
[1721020421848,0.32691968,3343.9,3343.6,0.05764945]
[1721020422044,3.94548057,3344.1,3343.6,0.05764945]
[1721020422233,1.36262211,3344.0,3343.6,0.05764945]
[1721020422431,0.32691893,3343.9,3343.6,0.05764945]
[1721020422823,1.02924197,3344.0,3343.6,0.05764945]
[1721020423045,0.32691897,3343.9,3343.6,0.05764945]
[1721020424051,4.98151321,3343.8,3343.6,0.05764945]
[1721020424214,1.36269161,3343.7,3343.6,0.05764945]
[1721020424418,2.42236151,3343.7,3343.5,0.1163867]
[1721020424614,1.0596699,3343.7,3343.6,0.05771827]
[1721020424913,2.42251294,3343.7,3343.6,0.05771827]
[1721020425313,2.42251294,3343.7,3343.5,0.1163867]
[1721020425517,0.32702627,3343.6,3343.5,0.1163867]
[1721020426055,1.0596699,3343.7,3343.5,0.1163867]
[1721020426227,1.07657504,3343.6,3343.5,0.1163867]
[1721020427546,0.74954105,3343.6,3343.5,0.1163867]
[1721020427929,3.44124105,3343.6,3343.5,0.1163867]
[1721020429050,3.76828471,3343.6,3343.5,0.1163867]
[1721020429251,6.43887221,3343.6,3343.5,0.1163867]
[1721020429473,9.13056509,3343.6,3343.5,0.1163867]
[1721020429749,7.87696293,3343.6,3343.5,0.1163867]
[1721020429965,9.44366475,3343.6,3343.5,0.1163867]
[1721020430125,7.87696293,3343.6,3343.5,0.1163867]
[1721020430948,3.36568553,3343.6,3343.5,0.1163867]
[1721020431150,2.61613492,3343.6,3343.5,0.1163867]
[1721020431356,1.36297384,3343.6,3343.5,0.1163867]
[1721020431650,2.61613492,3343.6,3343.5,0.1163867]
[1721020431862,4.05467384,3343.6,3343.5,0.1163867]
[1721020432147,5.30770285,3343.6,3343.5,0.1163867]
[1721020432310,6.61924726,3343.6,3343.5,0.1163867]
[1721020432721,5.36621825,3343.6,3343.5,0.1163867]
[1721020432921,6.61924726,3343.6,3343.5,0.1163867]
[1721020433124,6.61883051,3343.6,3343.5,0.1163867]
[1721020433323,5.36621825,3343.6,3343.5,0.1163867]
[1721020433546,9.31033484,3343.6,3343.5,0.1163867]
[1721020433714,8.05791825,3343.6,3343.5,0.1163867]
[1721020433926,9.6243696,3343.6,3343.5,0.1163867]
[1721020434130,8.05791825,3343.6,3343.5,0.1163867]
[1721020434378,8.11170116,3343.6,3343.5,0.1163867]
[1721020434541,9.69117667,3343.6,3343.5,0.1163867]
[1721020434742,7.02198981,3343.6,3343.5,0.1163867]
[1721020434955,9.31016018,3343.6,3343.5,0.1163867]
[1721020435436,9.86016018,3343.6,3343.5,0.1163867]
[1721020435743,8.60796078,3343.6,3343.5,0.1163867]
[1721020435939,10.17323442,3343.6,3343.5,0.1163867]
[1721020436382,8.60796078,3343.6,3343.5,0.1163867]
[1721020436678,11.60796078,3343.6,3343.5,0.1163867]
[1721020436830,15.86449984,3343.6,3343.5,0.1163867]
[1721020437033,14.29966078,3343.6,3343.5,0.1163867]
[1721020437257,15.86450853,3343.6,3343.5,0.1163867]
[1721020437466,12.93664441,3343.6,3343.5,0.1163867]
[1721020437631,14.29983033,3343.6,3343.5,0.1163867]
[1721020437834,17.78106174,3343.6,3343.5,0.1163867]
[1721020438182,19.65881087,3343.6,3343.5,0.1163867]
[1721020438551,17.78106174,3343.6,3343.5,0.1163867]
[1721020439248,19.65881087,3343.6,3343.5,0.1163867]
[1721020439567,17.78108789,3343.6,3343.5,0.1163867]
[1721020439765,19.65883702,3343.6,3343.5,0.1163867]
[1721020440655,18.62119286,3343.6,3343.5,0.1163867]
[1721020440969,17.78106584,3343.6,3343.5,0.1163867]
[1721020441265,14.00171281,3343.6,3343.5,0.1163867]
[1721020441471,16.69341281,3343.6,3343.5,0.1163867]
[1721020443134,16.69337246,3343.6,3343.5,0.1163867]
[1721020443440,15.33014441,3343.6,3343.5,0.1163867]
[1721020443646,16.69338678,3343.6,3343.5,0.1163867]
[1721020445380,18.2553477,3343.6,3343.5,0.1163867]
[1721020445977,16.69338915,3343.6,3343.5,0.1163867]
[1721020446342,16.69338905,3343.6,3343.5,0.1163867]
[1721020446567,18.25509617,3343.6,3343.5,0.1163867]
[1721020446950,2.69268,3342.4,3342.0,0.31132979]
[1721020447141,2.69268,3342.4,3341.3,5.0484]
[1721020447142,2.69291,3342.1,3341.3,5.0484]
[1721020447674,2.69317,3341.8,3341.3,2.3549]
[1721020448677,2.69317,3341.8,3340.9,2.4796]
[1721020448835,2.69279,3342.3,3340.9,5.17347]
[1721020449065,2.69299,3342.1,3341.0,2.69374]
[1721020449397,2.69324,3341.7,3341.0,2.69374]
[1721020449608,5.38653,3341.7,3340.9,2.79083903]
[1721020449768,2.69359,3341.3,3340.9,0.31123903]
[1721020450096,2.69348,3341.4,3340.5,2.4796]
[1721020450276,2.69348,3341.4,3340.6,2.69406]
[1721020450708,2.69332,3341.6,3340.8,2.69391]
[1721020451066,2.69332,3341.6,3340.9,2.74754576]
[1721020451402,2.69332,3341.6,3340.9,0.05368576]
[1721020451569,2.69332,3341.6,3340.8,2.69395]
[1721020451771,2.69332,3341.6,3340.9,0.05368576]
[1721020452705,2.69332,3341.6,3340.9,2.74756576]
[1721020453286,2.69349,3341.4,3340.9,0.05368576]
[1721020453517,2.69365,3341.2,3340.9,0.05368576]
[1721020453812,2.69365,3341.2,3341.0,0.05184941]
[1721020453993,2.69365,3341.2,3340.4,2.69428]
[1721020454197,2.69365,3341.2,3340.5,0.05196866]
[1721020454371,3.232364,3341.2,3340.5,0.05196866]
[1721020454572,0.538714,3341.2,3340.5,0.05196866]
[1721020454874,3.565949,3341.6,3340.2,0.1163867]
[1721020454875,5.38807,3340.8,3340.2,0.1163867]
[1721020455269,2.69403,3340.8,3340.3,0.05201636]
[1721020455925,2.6938,3341.0,3340.3,0.05201636]
[1721020456084,7.33,3341.4,3340.5,2.6942]
[1721020456085,2.69356,3341.3,3340.5,2.6942]
[1721020456415,3.0,3341.2,3340.6,0.05006947]
[1721020456762,3.0,3341.3,3340.6,0.05006947]
[1721020456966,4.3895949,3341.3,3340.6,0.05006947]
[1721020457268,2.69385,3341.0,3340.6,0.05006947]
[1721020457574,2.69366,3341.2,3340.2,0.1163867]
[1721020457790,2.69366,3341.2,3340.5,2.69418]
[1721020457791,3.0,3341.1,3340.5,2.69418]
[1721020457979,3.0,3341.1,3340.6,0.05006947]
[1721020459206,3.0,3341.2,3340.5,2.69418]
[1721020459369,3.0,3341.2,3340.6,0.05018891]
[1721020459680,3.0,3341.2,3340.4,2.69428]
[1721020459881,3.85649235,3341.2,3340.3,2.69435]
[1721020460107,6.55019235,3341.2,3340.4,2.69427]
[1721020460307,6.55019235,3341.2,3340.4,2.74450661]
[1721020462510,3.85649235,3341.2,3340.4,0.05023661]
[1721020462805,3.85649235,3341.2,3340.2,2.8108267]
[1721020463107,2.6938,3341.0,3340.3,0.05024901]
[1721020463473,2.69404,3340.7,3340.3,0.05024901]
[1721020464069,0.0025,3340.4,3340.3,0.05024901]
[1721020464473,2.68404,3340.7,3340.3,0.05024901]
[1721020465015,2.69413,3340.6,3340.3,0.05024901]
[1721020465375,2.69428,3340.4,3340.3,0.05024901]
[1721020465973,2.69428,3340.4,3340.2,0.1163867]
[1721020465974,2.69436,3340.3,3340.2,0.1163867]
[1721020466720,2.69436,3340.3,3340.2,0.16325107]
[1721020467008,2.963663,3340.5,3340.2,0.16325107]
[1721020467210,3.28700623,3341.1,3340.2,0.16325107]
[1721020467211,2.69384,3341.0,3340.2,0.1163867]
[1721020467519,5.69388,3340.9,3340.2,5.2634167]
[1721020467812,7.33,3341.2,3340.2,5.2634167]
[1721020467813,2.69372,3341.1,3340.3,0.04684051]
[1721020468384,3.00662681,3341.5,3340.5,2.6942]
[1721020468587,0.31321681,3341.5,3341.2,2.69362]
[1721020468813,7.33,3342.1,3341.4,2.69344]
[1721020469178,7.33,3342.1,3341.5,0.04655436]
[1721020469470,7.33,3342.1,3341.4,2.69344]
[1721020469906,3.0,3342.0,3341.4,2.69344]
[1721020470119,7.33,3342.1,3341.4,2.69344]
[1721020471525,3.0,3342.0,3341.4,2.69344]
[1721020472577,7.33,3342.1,3341.5,2.69337]
[1721020472806,2.69251,3342.7,3342.0,2.69298]
[1721020472807,7.33,3342.7,3342.0,2.69298]
[1721020473012,1.036207,3342.6,3342.1,0.04630226]
[1721020473218,2.69219,3343.0,3342.1,0.04630226]
[1721020473617,2.69207,3343.2,3342.3,2.69275]
[1721020473920,2.6922,3343.0,3342.2,2.69283]
[1721020474275,2.6922,3343.0,3342.3,0.04625461]
[1721020474578,2.6922,3343.0,3342.2,2.69283]
[1721020474781,2.6922,3343.0,3342.3,0.04625461]
[1721020474981,2.6922,3343.0,3342.2,2.69283]
[1721020475178,2.6922,3343.0,3342.3,0.04625461]
[1721020475685,2.6922,3343.0,3342.2,2.69283]
[1721020476092,2.6922,3343.0,3342.3,0.04625461]
[1721020476410,2.6922,3343.0,3342.2,2.69283]
[1721020476713,2.6922,3343.0,3342.3,0.04625461]
[1721020477185,2.6922,3343.0,3342.1,2.69291]
[1721020477186,1.03610726,3342.9,3342.1,2.69291]
[1721020477375,2.6922,3343.0,3342.2,0.04627843]
[1721020477581,2.69227,3342.9,3342.2,0.04627843]
[1721020477798,2.69227,3342.9,3342.1,2.69291]
[1721020478007,2.69227,3342.9,3342.2,0.04602817]
[1721020478205,0.53843,3342.9,3341.6,2.6933]
[1721020478430,2.6926,3342.5,3341.7,0.04614733]
[1721020478611,2.6926,3342.5,3341.7,2.73936733]
[1721020480180,5.1208,3342.5,3341.7,0.04614733]
[1721020480380,5.1208,3342.5,3341.4,5.14606]
[1721020480381,2.6927,3342.4,3341.4,2.4526]
[1721020480581,2.6927,3342.4,3341.4,5.4526]
[1721020480782,5.1208,3342.5,3341.6,2.69327]
[1721020480984,5.1208,3342.5,3341.7,0.0459396]
[1721020480985,2.6926,3342.5,3341.7,0.0459396]
[1721020481378,2.3645,3342.9,3341.7,0.0459396]
[1721020481583,2.69268,3342.4,3341.4,5.4526]
[1721020481823,2.69268,3342.4,3341.5,0.04598727]
[1721020481985,2.69268,3342.4,3341.5,2.73937727]
[1721020484832,0.3132735,3342.3,3341.5,2.73937727]
[1721020485643,0.3132735,3342.3,3341.6,0.04443052]
[1721020485938,0.3132735,3342.3,3341.6,2.73772052]
[1721020488399,3.57588985,3342.3,3341.6,0.04443052]
[1721020488599,3.57588985,3342.3,3341.4,2.69347]
[1721020488600,2.69291,3342.1,3341.3,2.69354]
[1721020488822,2.69291,3342.1,3341.4,0.04454033]
[1721020489131,2.69291,3342.1,3341.3,2.69354]
[1721020489434,2.69291,3342.1,3341.4,0.04454033]
[1721020489738,2.69303,3342.0,3341.1,2.69371]
[1721020489944,2.69314,3341.9,3340.9,2.69382]
[1721020490112,2.69314,3341.9,3341.2,0.04461581]
[1721020490353,0.61870954,3341.8,3341.0,2.6938]
[1721020490840,0.61870954,3341.8,3341.1,0.0446691]
[1721020491238,0.61870954,3341.8,3341.1,2.7383791]
[1721020491663,2.69314,3341.9,3341.1,2.7383791]
[1721020491847,0.80104535,3342.1,3341.2,2.69364]
[1721020492061,0.80104535,3342.1,3341.3,2.73820665]
[1721020492454,3.49396535,3342.1,3341.3,2.73820665]
[1721020493445,3.49396535,3342.1,3341.4,2.69346]
[1721020493645,0.61187389,3342.0,3341.5,0.04465224]
[1721020496074,0.61187389,3342.0,3341.3,2.69355]
[1721020496280,1.03636289,3341.9,3341.3,2.69355]
[1721020496440,0.61187389,3342.0,3341.4,0.04467608]
[1721020496645,1.03636318,3341.9,3341.4,0.04467608]
[1721020496840,0.71393224,3341.9,3341.4,0.04467608]
[1721020497140,1.03636328,3341.8,3341.4,0.04467608]
[1721020497385,0.71393224,3341.9,3341.4,0.04467608]
[1721020497585,1.03636343,3341.8,3341.4,0.04467608]
[1721020497748,0.71393224,3341.9,3341.4,2.73814608]
[1721020497951,1.03636328,3341.8,3341.4,5.43156608]
[1721020498149,1.03635928,3341.7,3341.4,5.43156608]
[1721020498502,4.255965,3342.5,3341.4,5.43156608]
[1721020498503,7.6432735,3342.3,3341.4,0.04467608]
[1721020498783,2.0,3342.0,3341.9,2.69307]
[1721020499006,2.0,3342.0,3341.9,5.38614]
[1721020499151,2.0,3342.0,3341.9,5.43069199]
[1721020499754,2.0,3342.0,3341.9,0.04455199]
[1721020500464,2.0,3342.0,3341.6,2.69331]
[1721020500667,2.0,3342.0,3341.7,0.04315543]
[1721020501666,2.0,3342.0,3341.8,2.69313]
[1721020501863,2.0,3342.0,3341.9,5.42924776]
[1721020503449,2.0,3342.0,3341.9,2.73617776]
[1721020503881,2.0,3342.0,3341.9,5.42924776]
[1721020505390,2.0,3342.0,3341.9,8.42924776]
[1721020510368,7.3221,3342.3,3342.0,2.69296]
[1721020510566,3.21431,3342.3,3341.9,0.04310776]
[1721020510778,1.0361431,3342.2,3342.1,0.04283115]
[1721020510994,1.0361431,3342.2,3342.0,0.04285498]
[1721020511295,2.4821,3342.3,3342.1,0.04283115]
[1721020511483,1.03620887,3342.2,3342.1,0.04283115]
[1721020511684,1.03620887,3342.2,3341.5,2.6934]
[1721020511994,3.58488713,3342.7,3342.1,2.73574115]
[1721020512322,3.58664491,3342.6,3342.1,2.69291]
[1721020512462,1.03617224,3342.5,3342.1,2.69291]
[1721020512769,1.03617224,3342.4,3342.2,0.04280732]
[1721020512978,2.55047267,3342.6,3342.2,0.04280732]
[1721020512979,1.03617224,3342.5,3342.2,0.04280732]
[1721020513198,2.55047267,3342.6,3342.2,0.04280732]
[1721020513404,1.25098713,3342.4,3341.8,2.69314]
[1721020513586,3.48165489,3342.5,3341.6,2.69331]
[1721020513789,1.25390322,3342.3,3341.6,2.69331]
[1721020514104,2.29012581,3342.2,3341.7,2.73615648]
[1721020514287,1.03622259,3342.1,3341.7,2.73615648]
[1721020514899,2.3879,3342.0,3341.7,2.73615648]
[1721020515799,1.03629536,3341.9,3341.7,0.04292648]
[1721020516112,2.3879,3342.0,3341.5,2.69339]
[1721020516113,2.1819,3342.0,3341.5,2.69339]
[1721020516324,2.1819,3342.0,3341.8,0.04294514]
[1721020516522,1.03632289,3341.9,3341.5,2.69339]
[1721020516819,2.1819,3342.0,3341.5,2.69339]
[1721020517110,2.1819,3342.0,3341.3,2.69356]
[1721020517111,1.25390322,3342.1,3341.6,2.69331]
[1721020517324,1.03625995,3342.0,3341.9,2.69307]
[1721020517479,1.25390322,3342.3,3342.0,2.69297]
[1721020517675,1.03621356,3342.2,3342.0,2.69297]
[1721020517888,1.25390322,3342.3,3342.0,2.69297]
[1721020518124,1.03618017,3342.2,3342.1,2.69291]
[1721020518289,6.09390322,3342.5,3342.3,2.69275]
[1721020518614,1.03612259,3342.4,3342.3,2.69275]
[1721020519471,4.84,3342.5,3342.4,2.69267]
[1721020519672,5.87611471,3342.5,3342.4,2.69267]
[1721020519921,7.13136305,3342.5,3342.4,2.69267]
[1721020522091,2.29136305,3342.5,3342.4,2.69267]
[1721020522722,2.29136305,3342.5,3342.2,2.69277]
[1721020522888,1.0361224,3342.4,3342.2,2.69277]
[1721020523211,1.25524834,3342.5,3342.3,0.04282599]
[1721020523413,1.34946877,3342.4,3342.3,2.73552599]
[1721020523613,1.34946877,3342.4,3342.3,2.6927]
[1721020523913,1.34946877,3342.4,3342.3,2.73552599]
[1721020526029,1.34941252,3342.4,3342.3,2.73552599]
[1721020526687,1.34941252,3342.4,3342.3,5.42827599]
[1721020526688,0.31334645,3342.4,3342.3,5.42827599]
[1721020526886,1.25552229,3343.0,3342.8,2.69228]
[1721020527130,1.34930086,3342.9,3342.8,2.69228]
[1721020528517,0.31335036,3342.9,3342.8,2.69228]
[1721020528727,0.31335036,3342.9,3342.8,5.38463]
[1721020530317,0.31335036,3342.9,3342.6,2.69245]
[1721020530520,0.31335036,3342.9,3342.7,2.69241]
[1721020531165,0.31335036,3342.9,3342.8,2.69235]
[1721020532326,0.31335036,3342.9,3342.6,2.69247]
[1721020532552,0.31335036,3342.9,3342.5,2.69258]
[1721020533058,3.3880964,3342.8,3342.5,2.69258]
[1721020533247,2.3521,3342.8,3342.5,2.69258]
[1721020533571,1.03600372,3342.7,3342.0,2.69297]
[1721020533721,2.3521,3342.8,3342.2,2.69281]
[1721020534076,1.03602235,3342.7,3342.2,2.69281]
[1721020534224,2.3521,3342.8,3342.2,2.69281]
[1721020534427,1.03603523,3342.7,3342.2,2.69281]
[1721020534626,2.3521,3342.8,3342.2,2.69281]
[1721020534834,1.03603631,3342.7,3342.3,2.69273]
[1721020535064,0.31335036,3342.9,3342.3,2.69273]
[1721020535279,1.03600496,3342.8,3342.6,2.69251]
[1721020535446,1.03596236,3342.8,3342.4,2.69265]
[1721020535632,1.03601199,3342.7,3342.4,2.69265]
[1721020535821,0.31335036,3342.9,3342.4,2.69265]
[1721020535822,1.03605251,3342.6,3342.4,2.69265]
[1721020536028,1.56720401,3342.9,3342.4,2.69265]
[1721020536240,1.03608126,3342.8,3342.3,2.69274]
[1721020536428,2.38506948,3342.9,3342.3,2.69274]
[1721020536429,1.03608126,3342.7,3342.3,2.69274]
[1721020536628,0.31335036,3342.9,3342.3,2.69274]
[1721020536830,1.0360395,3342.8,3342.4,2.69267]
[1721020537030,1.0360395,3342.7,3342.4,2.69267]
[1721020537325,0.31335036,3342.9,3342.5,2.69253]
[1721020537530,1.03598904,3342.8,3342.5,2.69253]
[1721020537764,1.03598904,3342.7,3342.5,2.69253]
[1721020537961,1.03598904,3342.8,3342.5,2.69253]
[1721020538176,1.03598904,3342.7,3342.6,2.69251]
[1721020538466,0.31335036,3342.9,3342.7,2.69243]
[1721020538693,1.03598479,3342.8,3342.6,2.69251]
[1721020538830,0.31335036,3342.9,3342.6,2.69251]
[1721020539031,1.03599675,3342.8,3342.6,2.69251]
[1721020539236,0.31335036,3342.9,3342.4,2.69262]
[1721020539436,1.0360027,3342.8,3342.4,2.69262]
[1721020539666,0.31335036,3342.9,3342.4,2.69262]
[1721020539869,1.03600502,3342.8,3342.4,2.69262]
[1721020540182,0.31335036,3342.9,3342.4,2.69262]
[1721020540379,1.03600488,3342.8,3342.4,2.69262]
[1721020540673,0.31335036,3342.9,3342.5,2.69259]
[1721020540882,1.03600462,3342.8,3342.6,0.04260902]
[1721020541162,1.03600525,3342.7,3342.6,0.04260902]
[1721020541362,0.31335036,3342.9,3342.6,0.04260902]
[1721020541567,1.03600504,3342.8,3342.6,0.04260902]
[1721020541750,0.31335036,3342.9,3342.6,0.04260902]
[1721020541951,1.03600515,3342.8,3342.6,0.04260902]
[1721020542168,1.03600363,3342.7,3342.6,0.04260902]
[1721020542376,2.28985728,3342.7,3342.0,2.69299]
[1721020542530,3.55441139,3342.9,3342.6,0.04260902]
[1721020542736,1.25505246,3342.7,3342.0,2.69299]
[1721020542958,2.29114803,3342.6,3342.0,2.69299]
[1721020543161,1.03609557,3342.5,3342.1,0.04272815]
[1721020543472,1.03611579,3342.4,3342.1,0.04272815]
[1721020543674,1.25505246,3342.6,3342.1,0.04272815]
[1721020543839,1.03612264,3342.5,3342.1,0.04272815]
[1721020544037,1.03612264,3342.4,3342.1,0.04272815]
[1721020544250,1.5691731,3342.7,3342.1,0.04272815]
[1721020544251,1.25505246,3342.5,3342.1,0.04272815]
[1721020544452,1.036131,3342.4,3342.1,0.04272815]
[1721020544651,1.25505246,3342.6,3342.1,2.73562815]
[1721020544970,1.03609775,3342.5,3342.4,2.69267]
[1721020545376,1.25505246,3342.6,3342.4,2.73536263]
[1721020545672,0.31335036,3342.9,3342.4,2.73536263]
[1721020545673,1.25505246,3342.7,3342.4,2.73536263]
[1721020545986,1.03603689,3342.6,3342.4,2.73536263]
[1721020547088,1.03603689,3342.7,3342.4,2.73536263]
[1721020547289,1.03603689,3342.6,3342.4,2.73536263]
[1721020547494,1.03603689,3342.5,3342.4,2.73536263]
[1721020548490,1.03603689,3342.5,3342.4,0.04269263]
[1721020548695,1.25505246,3342.6,3342.0,2.69297]
[1721020548880,1.25505246,3342.6,3342.1,2.73565939]
[1721020548881,1.0360654,3342.5,3342.1,2.73565939]
[1721020549066,1.0360654,3342.4,3342.1,2.73565939]
[1721020549270,1.0360654,3342.5,3342.1,2.73565939]
[1721020549496,1.0360654,3342.4,3342.1,2.73565939]
[1721020549776,1.25505246,3342.6,3342.1,2.73565939]
[1721020550096,1.03607549,3342.5,3342.1,2.73565939]
[1721020550268,1.03607549,3342.4,3342.1,2.73565939]
[1721020550474,2.3999,3342.4,3342.1,2.73565939]
[1721020550675,1.03607549,3342.3,3342.1,0.04274939]
[1721020551201,1.03607549,3342.3,3342.2,0.04274355]
[1721020551894,2.3999,3342.4,3342.0,2.69297]
[1721020552091,1.03615536,3342.3,3342.0,2.69297]
[1721020552307,2.3999,3342.4,3342.1,0.04277718]
[1721020552623,1.03612542,3342.3,3342.1,2.73567718]
[1721020552781,1.25581972,3342.5,3342.1,2.73567718]
[1721020552982,1.03611208,3342.4,3342.1,2.73567718]
[1721020553181,1.03611208,3342.3,3342.1,0.04277718]
[1721020553515,2.3999,3342.7,3341.3,7.76063]
[1721020553516,1.03611208,3342.2,3342.0,2.69298]
[1721020553704,1.03611208,3342.1,3342.0,2.69298]
[1721020554268,1.25581972,3342.4,3342.0,2.69298]
[1721020554542,1.03615404,3342.3,3342.0,2.69298]
[1721020554760,1.03615404,3342.2,3342.0,2.69298]
[1721020555051,1.25581972,3342.4,3341.8,2.6931]
[1721020555199,1.03615259,3342.3,3341.8,2.6931]
[1721020555502,1.03615259,3342.2,3341.8,3.00395808]
[1721020555702,1.03615259,3342.3,3341.9,0.04282975]
[1721020555902,1.03615263,3342.2,3341.9,0.04282975]
[1721020556105,1.25579718,3342.4,3341.9,0.04282975]
[1721020556299,1.03615241,3342.3,3341.9,0.04282975]
[1721020556504,1.03615241,3342.2,3341.9,0.04282975]
[1721020556806,1.25579718,3342.4,3341.9,0.04282975]
[1721020557125,2.4726,3342.1,3341.9,0.04282975]
[1721020557328,1.03615246,3342.0,3341.9,0.04282975]
[1721020557529,1.03615246,3342.0,3341.5,2.69339]
[1721020557729,1.03615246,3342.0,3341.9,0.04284773]
[1721020558042,1.03615246,3342.0,3341.5,2.69339]
[1721020558437,1.03624958,3341.9,3341.6,0.04293886]
[1721020558743,1.03625628,3341.8,3341.6,0.04293886]
[1721020558946,1.03625628,3341.7,3341.3,2.69355]
[1721020559112,1.25579718,3341.8,3341.7,0.04303111]
[1721020559315,2.29215528,3341.8,3341.7,0.04303111]
[1721020559717,3.19489746,3341.8,3341.7,0.04303111]
[1721020559940,5.00615,3341.7,3340.5,2.69414]
[1721020560138,1.25525394,3341.2,3340.6,2.69412]
[1721020560364,1.0363581,3341.1,3340.7,2.69403]
[1721020560916,2.69333,3341.6,3340.7,2.69403]
[1721020561153,1.25528455,3341.3,3340.7,2.69403]
[1721020561460,1.25548055,3341.6,3341.1,2.69364]
[1721020561680,1.03642586,3341.5,3340.9,2.69383]
[1721020561859,2.3129,3341.7,3340.6,2.4036]
[1721020561860,1.25548055,3341.7,3341.2,2.69358]
[1721020562163,1.25548055,3341.8,3341.5,2.6934]
[1721020562448,1.03630899,3341.7,3340.6,2.4036]
[1721020562650,1.03630899,3341.6,3341.1,2.69372]
[1721020562956,1.25548055,3341.8,3341.1,2.69372]
[1721020563249,1.03639584,3341.7,3341.4,2.69348]
[1721020563435,1.56935069,3342.0,3341.8,2.69315]
[1721020563436,1.25548055,3341.9,3341.8,2.69315]
[1721020563756,6.09548055,3342.2,3341.8,2.69315]
[1721020563926,1.03624649,3342.1,3341.8,2.69315]
[1721020564258,6.09548055,3342.2,3342.0,2.69298]
[1721020564259,4.84,3342.2,3342.0,2.69298]
[1721020564466,0.31335659,3342.3,3342.0,2.69298]
[1721020565125,0.31335659,3342.3,3341.5,2.75321655]
[1721020565324,0.31335659,3342.3,3342.2,2.69283]
[1721020565527,0.31335659,3342.3,3342.0,2.69299]
[1721020565856,0.31335659,3342.3,3342.1,2.6929]
[1721020566227,0.31335659,3342.3,3341.9,2.69303]
[1721020566740,0.31335659,3342.3,3342.0,2.69298]
[1721020567664,0.31335659,3342.3,3341.7,2.69322]
[1721020567859,1.03616649,3342.2,3341.7,2.69322]
[1721020568070,0.31335659,3342.3,3341.7,2.69322]
[1721020568273,1.03618321,3342.2,3341.7,2.69322]
[1721020568568,0.31335659,3342.3,3341.7,2.69322]
[1721020568769,1.03618687,3342.2,3341.7,2.69322]
[1721020569076,0.31335659,3342.3,3341.5,2.69339]
[1721020569250,1.03619617,3342.2,3341.5,2.69339]
[1721020569454,1.03619617,3342.2,3341.6,2.69331]
[1721020569856,1.03619617,3342.2,3341.7,2.69323]
[1721020570251,0.31335659,3342.3,3341.9,2.693]
[1721020570440,1.03616017,3342.2,3342.0,2.69298]
[1721020570640,0.31335659,3342.3,3342.0,2.69298]
[1721020570841,1.0361524,3342.2,3342.1,0.04149429]
[1721020571042,0.31335659,3342.3,3342.1,0.04149429]
[1721020571251,1.03613232,3342.2,3342.1,0.04149429]
[1721020572562,0.31335659,3342.3,3342.1,2.73440429]
[1721020572774,0.31335659,3342.3,3342.1,0.04149429]
[1721020573070,2.447,3342.1,3341.3,2.69353]
[1721020573386,1.36360662,3342.0,3341.5,2.69339]
[1721020573542,1.03625628,3341.9,3341.2,2.69364]
[1721020573742,2.447,3342.1,3341.3,2.69355]
[1721020573743,1.36376863,3341.8,3341.3,2.69355]
[1721020573980,1.03625628,3341.7,3341.4,2.69342]
[1721020574282,1.25484675,3342.0,3341.4,2.69342]
[1721020574489,1.3637965,3341.9,3341.4,2.69342]
[1721020574774,1.3637965,3341.8,3341.4,2.69342]
[1721020574974,1.03630698,3341.7,3341.4,2.69342]
[1721020575191,1.25484675,3342.0,3341.2,2.69359]
[1721020575342,3.72839173,3341.9,3341.2,2.69359]
[1721020575541,1.36388697,3341.8,3341.2,2.69359]
[1721020575784,1.36388697,3341.7,3341.2,2.69359]
[1721020575956,1.03634141,3341.6,3341.2,2.69359]
[1721020576156,1.03634141,3341.8,3341.2,2.69359]
[1721020576365,1.3638627,3341.7,3341.2,2.69359]